bitfinex/quotes_ETHUSD_20251117
["timestamp","ask_amount","ask_price","bid_price","bid_amount"]
[1763398402560,0.405504,3141.0,3140.0,0.1]
[1763398402755,0.405504,3140.8,3140.0,0.1]
[1763398403062,0.4816,3140.9,3140.0,0.1]
[1763398403492,0.6637,3141.5,3140.0,0.1]
[1763398403797,0.5055332,3141.4,3140.0,0.1]
[1763398403982,0.405504,3141.1,3140.0,0.1]
[1763398404182,0.405504,3140.9,3140.0,0.1]
[1763398404389,1.23382209,3141.0,3140.0,0.1]
[1763398404564,0.5055332,3140.9,3140.0,0.1]
[1763398404926,0.4816,3140.9,3140.0,0.1]
[1763398405099,0.5055332,3140.9,3140.0,0.1]
[1763398405266,0.405504,3140.8,3140.0,0.1]
[1763398405465,0.0239332,3140.7,3140.0,0.1]
[1763398405718,7.52222094,3140.6,3138.4,0.82084415]
[1763398406007,0.405504,3139.9,3137.6,0.001]
[1763398406204,0.405504,3139.7,3137.6,0.001]
[1763398406404,0.0239332,3139.6,3137.6,0.001]
[1763398406717,0.4816,3139.6,3137.7,0.2266]
[1763398406898,0.0239332,3139.5,3137.6,0.001]
[1763398407220,0.4816,3139.5,3137.7,0.2266]
[1763398407384,0.182,3139.4,3137.7,1.04744415]
[1763398407703,0.182,3139.7,3137.7,0.2266]
[1763398407906,0.4816,3139.5,3137.7,0.2266]
[1763398408213,0.4816,3139.5,3137.8,0.2266]
[1763398408374,0.5055332,3139.5,3138.8,0.001]
[1763398408570,0.4808,3139.5,3138.8,0.001]
[1763398409793,0.182,3139.7,3138.8,0.001]
[1763398410589,0.6636,3139.7,3138.8,0.001]
[1763398410792,0.4294372,3139.6,3138.8,0.001]
[1763398410988,0.9110372,3139.6,3138.8,0.001]
[1763398411312,0.887104,3139.6,3138.8,0.001]
[1763398411511,0.405504,3139.4,3138.8,0.001]
[1763398411686,0.405504,3139.4,3137.6,0.001]
[1763398411687,0.0239332,3139.3,3137.6,0.001]
[1763398411887,7.11671694,3138.9,3137.6,0.001]
[1763398412133,0.405504,3138.7,3137.6,0.001]
[1763398412497,0.405504,3138.5,3137.6,0.001]
[1763398413024,0.4816,3138.5,3137.6,0.001]
[1763398413829,0.90699264,3139.4,3137.6,0.001]
[1763398414034,0.4816,3139.1,3137.6,0.001]
[1763398414218,0.4816,3139.1,3137.6,0.2294]
[1763398414418,0.4816,3139.1,3137.6,0.001]
[1763398416117,0.4294372,3139.0,3137.6,0.001]
[1763398416323,0.405504,3138.8,3137.6,0.001]
[1763398416633,0.405504,3138.6,3137.6,0.001]
[1763398416955,0.0239332,3138.5,3137.6,0.001]
[1763398417137,0.1877,3137.7,3137.6,0.001]
[1763398417338,0.405504,3137.6,3136.9,0.001]
[1763398417536,0.895004,3137.6,3136.9,0.001]
[1763398417941,0.405504,3137.4,3136.9,0.001]
[1763398418554,0.4895,3137.3,3136.9,0.001]
[1763398418910,0.405504,3137.6,3136.9,0.001]
[1763398419114,0.4895,3137.3,3136.9,0.001]
[1763398419749,0.4294372,3137.2,3136.9,0.001]
[1763398420151,0.4895,3137.1,3136.9,0.001]
[1763398420350,0.4294372,3137.0,3136.9,0.001]
[1763398420651,0.4294372,3137.0,3136.5,0.001]
[1763398420652,0.405504,3137.0,3136.5,0.001]
[1763398420850,0.593204,3136.6,3136.5,0.001]
[1763398421355,1.082704,3136.6,3136.5,0.001]
[1763398421649,1.1066372,3136.6,3136.5,0.001]
[1763398422011,1.082704,3136.6,3136.5,0.001]
[1763398422214,1.082704,3136.6,3136.2,0.001]
[1763398422215,0.405504,3136.5,3136.2,0.001]
[1763398422451,0.405504,3136.3,3136.2,0.001]
[1763398422650,0.4294372,3136.3,3136.2,0.001]
[1763398422811,0.4294372,3136.3,3134.4,0.1008]
[1763398422812,1.72250261,3136.3,3134.4,0.1008]
[1763398423017,1.72250261,3136.3,3134.0,0.1038]
[1763398423212,0.405504,3136.1,3134.0,0.1038]
[1763398423520,0.4895,3136.8,3134.0,0.3362]
[1763398423732,0.4895,3136.8,3134.0,1.15704415]
[1763398423938,0.895004,3136.5,3134.1,0.2324]
[1763398424338,0.405504,3136.3,3134.1,0.2324]
[1763398424983,0.1877,3136.6,3134.1,0.2324]
[1763398425173,7.11671694,3137.6,3134.1,0.2324]
[1763398425174,0.1877,3136.9,3134.2,0.85275021]
[1763398425475,0.4895,3137.3,3134.5,0.82084415]
[1763398425842,0.4895,3137.3,3134.6,0.2324]
[1763398426235,0.0239332,3137.2,3134.6,0.2324]
[1763398426572,0.405504,3137.2,3134.6,0.2324]
[1763398426872,0.405504,3137.0,3134.6,0.2324]
[1763398427178,0.4895,3137.1,3134.7,0.03190097]
[1763398427353,0.4895,3137.1,3134.8,0.2324]
[1763398427550,0.4895,3137.1,3134.9,0.03189894]
[1763398427877,0.4895,3137.6,3134.8,0.2324]
[1763398428175,0.5134332,3137.6,3134.8,0.2324]
[1763398428474,0.4895,3137.6,3134.9,0.03189894]
[1763398428875,0.4895,3137.6,3135.0,0.2324]
[1763398429939,0.4895,3137.6,3135.0,1.05324415]
[1763398430178,0.5134332,3137.6,3135.1,0.2324]
[1763398430339,0.4895,3137.6,3135.1,0.2324]
[1763398430540,0.4895,3137.6,3135.2,0.82084415]
[1763398430740,0.4895,3137.6,3135.3,1.05324415]
[1763398430940,0.1877,3138.1,3135.4,0.26429385]
[1763398431172,0.1877,3138.1,3135.4,1.05324415]
[1763398431401,0.75222209,3138.7,3135.7,0.405504]
[1763398431556,0.4887,3139.0,3136.2,0.82084415]
[1763398431763,0.0239332,3138.9,3136.2,0.82084415]
[1763398431963,0.0239332,3138.9,3136.3,0.3626]
[1763398432372,0.90699264,3139.3,3136.3,0.3626]
[1763398432373,0.90699264,3139.3,3136.4,0.2332]
[1763398432578,0.82114096,3139.2,3136.4,0.2332]
[1763398432783,0.0239332,3139.1,3136.4,0.2332]
[1763398432973,0.4294372,3139.1,3136.4,0.2332]
[1763398433176,0.405504,3139.1,3136.4,0.2332]
[1763398433562,0.405504,3138.9,3136.4,0.2332]
[1763398434197,0.405504,3138.7,3136.4,0.2332]
[1763398434375,0.0239332,3138.6,3136.4,0.2332]
[1763398434693,0.405504,3138.4,3136.4,0.2332]
[1763398434868,0.4294372,3138.4,3136.4,0.2332]
[1763398435060,0.4294372,3138.4,3136.3,0.1294]
[1763398435061,0.405504,3138.2,3136.3,0.1294]
[1763398435258,0.405504,3138.2,3136.4,0.2332]
[1763398435461,0.405504,3138.0,3136.4,0.2332]
[1763398435706,0.6772,3138.1,3136.4,0.2332]
[1763398435887,0.4895,3138.0,3136.4,0.2332]
[1763398436084,0.4895,3138.0,3136.3,0.1294]
[1763398436085,0.405504,3137.9,3136.3,0.1294]
[1763398436303,0.405504,3137.7,3135.8,0.2332]
[1763398436465,0.405504,3137.5,3136.0,0.1294]
[1763398437000,0.5134332,3137.4,3136.0,0.1294]
[1763398437303,0.4895,3137.4,3136.0,0.1294]
[1763398437772,0.405504,3137.3,3136.0,0.1294]
[1763398437974,0.4895,3137.4,3136.1,0.03188673]
[1763398438180,0.4895,3137.4,3136.0,0.1294]
[1763398438360,0.405504,3137.8,3136.1,0.03188673]
[1763398438561,0.4895,3137.8,3136.1,0.03188673]
[1763398438792,0.4895,3137.8,3136.2,0.2332]
[1763398439716,0.0239332,3137.7,3136.2,0.2332]
[1763398439889,0.4895,3137.8,3136.2,0.2332]
[1763398440269,0.4294372,3137.7,3136.1,0.8264117]
[1763398440489,0.405504,3137.7,3136.1,0.8264117]
[1763398440803,0.6772,3138.1,3136.2,0.2332]
[1763398440993,0.6772,3138.1,3136.3,0.8264117]
[1763398441167,0.6772,3138.1,3136.4,0.2332]
[1763398441501,0.895004,3138.0,3136.2,0.8264117]
[1763398441691,0.405504,3137.8,3136.2,0.2332]
[1763398441866,0.1877,3138.1,3136.1,0.8264117]
[1763398441867,0.405504,3137.6,3136.1,0.8264117]
[1763398442197,0.405504,3137.6,3136.0,0.1294]
[1763398442398,0.405504,3137.4,3136.0,0.1294]
[1763398442765,0.4895,3137.4,3136.0,0.1294]
[1763398443002,0.405504,3137.3,3136.0,0.1294]
[1763398443203,0.4895,3137.8,3136.1,0.2332]
[1763398443405,0.4895,3139.1,3137.0,0.8264117]
[1763398443701,0.182,3139.7,3137.8,0.8264117]
[1763398443899,0.182,3139.7,3137.9,0.85828014]
[1763398444101,0.182,3139.7,3138.0,0.8264117]
[1763398444102,0.6715,3139.7,3138.0,0.8264117]
[1763398444274,0.1877,3140.2,3138.2,0.8264117]
[1763398444487,0.5134332,3140.1,3138.2,0.8264117]
[1763398444681,0.29691799,3140.0,3137.7,0.1038]
[1763398445087,0.4895,3139.9,3137.8,0.2332]
[1763398445397,0.002,3139.0,3137.9,0.03186844]
[1763398445626,0.002,3139.0,3138.0,0.2332]
[1763398445780,0.002,3139.0,3138.2,0.8264117]
[1763398446099,0.002,3139.0,3138.0,0.2332]
[1763398446100,0.002,3139.0,3138.0,0.8264117]
[1763398446275,0.002,3139.0,3138.0,0.19208706]
[1763398446476,0.002,3139.0,3137.9,0.8264117]
[1763398446801,0.4996332,3139.0,3137.9,0.8264117]
[1763398447001,0.4757,3139.0,3137.7,0.1038]
[1763398447201,0.4996332,3139.0,3137.7,0.1038]
[1763398447518,0.4757,3139.0,3137.7,0.1038]
[1763398447663,0.002,3139.0,3137.7,0.1038]
[1763398447870,0.4737,3138.9,3137.7,0.1038]
[1763398449123,0.4294372,3138.8,3137.2,0.8264117]
[1763398449418,0.4294372,3138.8,3137.0,0.8264117]
[1763398449419,0.405504,3138.6,3137.0,0.8264117]
[1763398449570,0.0239332,3138.5,3136.6,0.8264117]
[1763398449897,0.0239332,3138.5,3135.3,6.85550873]
[1763398449898,0.1801,3137.1,3135.5,0.001]
[1763398450065,0.405504,3137.0,3135.6,0.2332]
[1763398450269,0.1801,3137.1,3135.6,0.2332]
[1763398450468,0.4737,3137.9,3135.6,1.0596117]
[1763398450706,0.4737,3137.9,3136.2,0.8264117]
[1763398451008,0.4737,3137.9,3136.1,0.8264117]
[1763398451176,0.4737,3137.9,3136.2,0.2332]
[1763398451583,0.1801,3138.0,3136.2,1.0596117]
[1763398451778,0.1801,3138.0,3136.5,0.8264117]
[1763398451983,0.1801,3138.0,3136.6,0.8264117]
[1763398452196,0.4737,3137.9,3136.4,0.8264117]
[1763398452504,0.1801,3137.9,3136.7,0.8264117]
[1763398452808,0.0239332,3137.8,3136.4,0.8264117]
[1763398453016,0.4294372,3137.8,3136.0,1.73340434]
[1763398453304,0.1801,3137.9,3136.4,0.8264117]
[1763398453605,0.4737,3138.3,3136.5,0.8264117]
[1763398453917,0.002,3139.0,3136.7,0.8264117]
[1763398454098,0.002,3139.0,3138.2,0.1166]
[1763398454623,0.0012,3139.0,3138.2,1.1762117]
[1763398454786,0.0012,3139.0,3138.3,0.85827608]
[1763398454972,0.0012,3139.0,3138.4,0.8264117]
[1763398455172,0.0012,3139.0,3138.5,0.8264117]
[1763398455413,0.0012,3139.0,3138.4,0.8264117]
[1763398456220,0.0012,3139.0,3138.2,0.8264117]
[1763398456370,0.0012,3139.0,3138.1,0.8264117]
[1763398456575,0.0012,3139.0,3138.2,0.2650654]
[1763398456775,0.0012,3139.0,3138.2,0.2332]
[1763398456985,0.0012,3139.0,3137.9,0.9430117]
[1763398457211,0.0012,3139.0,3138.0,0.03186743]
[1763398457377,0.0012,3139.0,3138.0,0.8264117]
[1763398457578,0.0012,3139.0,3137.9,0.32034706]
[1763398457778,0.4538,3139.0,3137.9,0.1166]
[1763398458284,0.0012,3139.0,3138.0,0.8264117]
[1763398458489,0.0012,3139.0,3138.1,0.8264117]
[1763398458690,0.0012,3139.0,3137.9,1.44425887]
[1763398458691,0.0012,3139.0,3138.2,0.8264117]
[1763398458885,0.0012,3139.0,3138.0,1.32765887]
[1763398458886,0.0012,3139.0,3138.3,0.85827608]
[1763398459086,0.0012,3139.0,3138.3,0.8264117]
[1763398459475,0.0012,3139.0,3138.2,0.8264117]
[1763398459914,0.0012,3139.0,3138.3,0.8264117]
[1763398460614,0.0012,3139.0,3138.2,0.8264117]
[1763398460813,0.0012,3139.0,3138.1,0.8264117]
[1763398460995,0.0012,3139.0,3138.0,0.8264117]
[1763398461179,0.0012,3139.0,3137.9,0.1166]
[1763398461380,0.0012,3139.0,3137.9,0.10901]
[1763398461579,0.0012,3139.0,3138.0,0.2256]
[1763398461812,0.0012,3139.0,3137.9,0.10901]
[1763398461999,0.0012,3139.0,3137.7,0.8264117]
[1763398462000,0.405504,3138.8,3137.7,0.8264117]
[1763398462183,0.405504,3138.8,3137.3,0.9354117]
[1763398462385,0.405504,3138.8,3137.2,0.8264117]
[1763398462386,0.405504,3138.6,3137.2,0.8264117]
[1763398462622,0.4294372,3138.6,3137.0,0.8264117]
[1763398462819,0.4526,3138.8,3137.1,1.0520117]
[1763398463002,0.0012,3139.0,3137.9,0.001]
[1763398463330,0.0012,3139.0,3138.0,0.3346]
[1763398463487,0.0012,3139.0,3138.1,0.8264117]
[1763398463840,0.0012,3139.0,3138.3,0.8264117]
[1763398464034,0.0012,3139.0,3138.4,0.8264117]
[1763398464530,0.0012,3139.0,3138.5,1.0520117]
[1763398464889,0.0012,3139.0,3138.6,0.8264117]
[1763398465122,0.0012,3139.0,3138.5,0.8264117]
[1763398465321,0.0012,3139.0,3138.0,0.9354117]
[1763398465635,0.0012,3139.0,3138.1,1.0520117]
[1763398465970,0.0012,3139.0,3138.0,0.109]
[1763398465971,0.0012,3139.0,3138.2,1.0520117]
[1763398466254,0.0012,3139.0,3138.4,0.8264117]
[1763398466958,0.0012,3139.0,3138.3,0.8264117]
[1763398467119,0.0012,3139.0,3138.3,0.30534632]
[1763398467321,0.0012,3139.0,3138.3,0.8264117]
[1763398467522,0.0012,3139.0,3138.2,0.8264117]
[1763398467755,0.0012,3139.0,3138.3,0.8264117]
[1763398468275,0.0012,3139.0,3138.5,0.8264117]
[1763398468570,0.0012,3139.0,3138.4,0.8264117]
[1763398468770,0.0012,3139.0,3138.4,1.10919802]
[1763398469057,0.4538,3139.0,3138.2,0.8264117]
[1763398469223,0.4538,3139.0,3138.0,0.8264117]
[1763398469224,0.0012,3139.0,3138.0,0.8264117]
[1763398469421,0.0012,3139.0,3138.1,0.8264117]
[1763398470049,0.0012,3139.0,3138.2,1.0520117]
[1763398470259,0.0012,3139.0,3138.3,0.8264117]
[1763398470756,0.0012,3139.0,3138.5,0.8264117]
[1763398470921,0.0012,3139.0,3138.4,0.8264117]
[1763398471122,0.0012,3139.0,3138.4,1.01849876]
[1763398471336,0.0012,3139.0,3138.4,0.19208706]
[1763398471559,0.0012,3139.0,3138.3,0.8264117]
[1763398471747,0.0012,3139.0,3138.5,0.8264117]
[1763398472056,0.0012,3139.0,3138.6,0.03186133]
[1763398472561,0.4538,3139.0,3138.4,0.8264117]
[1763398472765,0.4538,3139.0,3138.2,1.09445887]
[1763398472766,0.0012,3139.0,3138.2,0.8264117]
[1763398474188,0.0012,3139.0,3138.3,0.8264117]
[1763398474724,0.0012,3139.0,3138.2,1.01849876]
[1763398475040,0.0012,3139.0,3138.3,0.8264117]
[1763398475254,0.0012,3139.0,3138.2,0.8264117]
[1763398475564,0.0012,3139.0,3138.2,1.01849876]
[1763398475761,0.0012,3139.0,3138.5,0.8264117]
[1763398475952,0.0012,3139.0,3138.3,1.32005887]
[1763398475953,0.0012,3139.0,3138.6,0.8264117]
[1763398476566,0.0012,3139.0,3138.5,0.8264117]
[1763398476765,0.0012,3139.0,3138.7,0.8264117]
[1763398477153,0.0012,3139.0,3138.7,1.0520117]
[1763398477349,0.0012,3139.0,3138.7,1.26665876]
[1763398477757,0.0004,3139.0,3138.7,1.04105876]
[1763398478631,0.0004,3139.0,3138.7,0.8264117]
[1763398478863,0.0004,3139.0,3138.6,0.8264117]
[1763398479469,0.4936,3139.0,3138.4,0.8264117]
[1763398479665,0.4936,3139.0,3138.3,0.8264117]
[1763398479856,0.4936,3139.0,3138.1,0.8264117]
[1763398480055,0.4936,3139.0,3138.0,0.8264117]
[1763398480260,0.4936,3139.0,3137.9,0.90089289]
[1763398480585,0.0004,3139.0,3138.5,0.001]
[1763398480883,0.0004,3139.0,3138.5,0.8274117]
[1763398481185,0.0004,3139.0,3138.8,0.8264117]
[1763398481338,0.0004,3139.0,3138.9,0.82912325]
[1763398481696,0.4936,3139.0,3138.6,0.82912325]
[1763398481992,0.0004,3139.0,3138.6,0.82912325]
[1763398482282,0.0004,3139.0,3138.6,1.02158146]
[1763398482484,0.4936,3139.0,3138.6,0.82912325]
[1763398482841,0.0004,3139.0,3138.6,0.82912325]
[1763398483177,0.4932,3138.9,3138.7,0.82912325]
[1763398483479,0.4932,3138.9,3138.8,0.82912325]
[1763398483700,0.0004,3139.0,3138.8,0.82912325]
[1763398483890,0.0004,3139.0,3138.9,0.83082929]
[1763398484244,0.0004,3139.0,3138.8,0.83082929]
[1763398484245,0.4936,3139.0,3138.8,0.83082929]
[1763398484478,0.0004,3139.0,3138.9,0.83082929]
[1763398484777,0.0004,3139.0,3138.8,0.83082929]
[1763398484977,0.0004,3139.0,3138.5,0.001]
[1763398484978,0.4932,3138.9,3138.7,0.83082929]
[1763398486268,0.4932,3138.9,3138.5,0.83182929]
[1763398486673,0.0004,3139.0,3138.5,0.83182929]
[1763398486980,0.0004,3139.0,3138.8,0.83082929]
[1763398487283,0.0004,3139.0,3138.9,0.86268758]
[1763398487858,0.0004,3139.0,3138.9,0.83082929]
[1763398488078,0.4936,3139.0,3138.9,0.83082929]
[1763398488254,0.4936,3139.0,3138.8,0.83082929]
[1763398488969,0.0004,3139.0,3138.9,0.83082929]
[1763398489170,0.0004,3139.0,3138.9,1.02335811]
[1763398489470,0.0004,3139.0,3138.9,1.28698769]
[1763398489673,0.0004,3139.0,3138.9,1.09445887]
[1763398490394,0.0004,3139.0,3138.5,0.001]
[1763398490395,0.0004,3139.0,3138.8,1.56157564]
[1763398491367,0.0004,3139.0,3138.9,1.56157564]
[1763398492379,0.0004,3139.0,3138.6,2.08210085]
[1763398492579,0.0004,3139.0,3138.9,0.2256]
[1763398492799,0.0004,3139.0,3138.6,2.08210085]
[1763398492960,0.0004,3139.0,3138.7,0.20831008]
[1763398493462,0.0004,3139.0,3138.6,2.08210085]
[1763398493686,0.0004,3139.0,3138.5,2.08310085]
[1763398494059,0.0004,3139.0,3138.9,1.66341507]
[1763398494461,0.0004,3139.0,3138.9,1.1091123]
[1763398494662,0.0004,3139.0,3138.8,1.66341507]
[1763398494856,0.0004,3139.0,3138.9,1.10912321]
[1763398495404,0.0004,3139.0,3138.9,0.83201208]
[1763398495893,0.0004,3139.0,3138.8,1.10912321]
[1763398496229,0.0004,3139.0,3138.9,1.10912321]
[1763398496368,0.0004,3139.0,3138.8,1.10912321]
[1763398496863,0.4936,3139.0,3138.8,1.10912321]
[1763398497062,0.4936,3139.0,3138.9,1.10912321]
[1763398497359,0.4936,3139.0,3138.8,1.10912321]
[1763398497564,0.0004,3139.0,3138.9,1.10912321]
[1763398498092,0.0004,3139.0,3138.9,0.50285383]
[1763398498609,0.0004,3139.0,3138.9,3.49294732]
[1763398498932,0.0004,3139.0,3138.9,3.62686616]
[1763398499859,0.0004,3139.0,3138.9,3.40126616]
[1763398500307,0.0004,3139.0,3138.9,0.001]
[1763398500480,0.0004,3139.0,3138.9,1.66313313]
[1763398500682,0.0004,3139.0,3138.9,0.2266]
[1763398501033,0.1793,3141.6,3139.6,0.405504]
[1763398501170,0.65998237,3142.0,3141.3,0.82982283]
[1763398501171,0.1866,3141.9,3141.3,0.82982283]
[1763398501380,0.4932,3141.8,3141.3,0.82982283]
[1763398501702,0.0239332,3143.0,3141.3,0.82982283]
[1763398501703,0.1866,3142.5,3141.4,0.03183294]
[1763398501922,1.04049759,3144.0,3142.4,0.82982283]
[1763398501923,0.4932,3143.3,3142.4,0.82982283]
[1763398502238,8.25822274,3143.9,3142.6,0.82623443]
[1763398502511,0.1866,3141.7,3140.8,0.82623443]
[1763398502752,0.1866,3140.9,3140.3,0.82623443]
[1763398502890,0.1866,3141.7,3140.7,0.82623443]
[1763398503092,0.4932,3142.0,3140.8,0.82623443]
[1763398503332,0.4932,3142.5,3141.3,0.82623443]
[1763398503500,0.4932,3143.0,3141.5,0.82623443]
[1763398503695,0.4932,3143.0,3141.5,1.01950092]
[1763398503898,0.1866,3143.1,3142.0,0.82623443]
[1763398504099,0.1866,3143.1,3142.2,0.82623443]
[1763398504301,0.1866,3143.1,3142.0,0.82623443]
[1763398504952,0.1866,3142.1,3141.8,0.82623443]
[1763398505097,0.1866,3142.6,3141.2,0.82623443]
[1763398505292,0.1866,3143.1,3141.4,0.82623443]
[1763398505596,0.6798,3143.1,3141.6,0.82623443]
[1763398505818,0.6798,3143.1,3141.6,1.01950092]
[1763398505998,0.4569,3143.0,3141.3,0.82623443]
[1763398506199,0.4294372,3142.9,3141.1,0.82623443]
[1763398506494,0.4294372,3142.9,3140.9,1.21623045]
[1763398506495,0.405504,3142.7,3140.9,0.93603443]
[1763398506596,0.4569,3142.8,3140.3,0.82623443]
[1763398506597,0.1883,3141.2,3140.3,0.82623443]
[1763398506797,0.1883,3141.2,3140.0,0.82623443]
[1763398507103,0.4569,3141.1,3140.0,1.01950092]
[1763398507312,0.4569,3141.1,3140.1,0.03184611]
[1763398507599,0.4569,3141.1,3139.4,1.05263443]
[1763398507827,0.4569,3141.1,3139.6,0.82623443]
[1763398508029,0.4569,3141.1,3139.5,0.82623443]
[1763398508338,0.4569,3141.1,3139.3,1.44943045]
[1763398508339,0.4569,3141.1,3139.6,0.82623443]
[1763398508635,0.4569,3141.1,3139.6,1.01950092]
[1763398509635,0.4569,3141.1,3139.6,0.19326649]
[1763398509799,0.4569,3141.1,3139.5,0.82623443]
[1763398509996,0.1883,3139.6,3139.0,0.82623443]
[1763398510201,0.1883,3139.6,3138.9,0.001]
[1763398510440,0.4569,3139.5,3138.9,0.001]
[1763398511238,0.405504,3138.9,3138.2,0.001]
[1763398511547,0.405504,3138.9,3138.1,0.001]
[1763398511548,0.405504,3138.1,3137.9,0.07448119]
[1763398511903,0.4569,3138.0,3137.9,0.07448119]
[1763398512299,0.1883,3138.2,3137.9,0.07448119]
[1763398512505,0.4569,3138.1,3137.9,0.07448119]
[1763398513642,8.25822274,3138.0,3137.9,0.07448119]
[1763398513800,8.25822274,3138.0,3135.8,0.37888978]
[1763398513801,1.31249664,3137.9,3135.5,0.82723443]
[1763398514156,0.1883,3136.4,3135.5,0.001]
[1763398514734,8.73905594,3136.3,3135.5,0.001]
[1763398514939,0.89273559,3136.2,3135.5,0.001]
[1763398515156,8.25822274,3135.8,3135.5,0.001]
[1763398515304,0.4569,3135.7,3135.5,0.001]
[1763398515636,0.0239332,3135.6,3135.1,0.001]
[1763398515837,0.1883,3135.2,3135.1,0.001]
[1763398516136,0.6691332,3135.2,3135.1,0.001]
[1763398516355,0.6452,3135.2,3135.1,0.001]
[1763398520031,0.4967,3135.8,3135.1,0.001]
[1763398520532,0.1899,3135.2,3135.1,0.001]
[1763398521051,0.6866,3135.2,3135.1,0.001]
[1763398523002,1.092104,3135.2,3135.1,0.001]
[1763398523313,0.902204,3135.1,3132.3,0.3079]
[1763398523625,0.80342326,3135.0,3132.4,0.0319244]
[1763398523936,0.4959,3135.1,3132.5,0.405504]
[1763398524146,0.4959,3135.1,3132.7,0.405504]
[1763398524370,0.4959,3135.1,3132.9,0.405504]
[1763398524520,0.1899,3135.2,3132.8,0.3087]
[1763398524729,0.1899,3135.2,3132.9,0.405504]
[1763398525103,0.0239332,3135.1,3133.0,0.3087]
[1763398525514,0.1899,3135.2,3133.0,0.3087]
[1763398525723,0.4967,3135.1,3133.0,0.3087]
[1763398526831,0.5206332,3135.1,3133.0,0.3087]
[1763398527234,0.4967,3135.1,3133.1,0.03191727]
[1763398527411,0.4967,3135.1,3133.0,0.3087]
[1763398527609,0.1899,3135.2,3133.1,0.03191727]
[1763398527923,0.1899,3135.2,3133.0,0.3087]
[1763398528330,0.1899,3135.9,3133.0,0.3087]
[1763398528331,0.1899,3135.9,3133.3,1.31249664]
[1763398528531,0.1899,3135.9,3133.5,0.405504]
[1763398528930,0.1899,3135.9,3133.6,0.3087]
[1763398529673,0.4967,3135.8,3133.6,0.3087]
[1763398529874,0.4967,3135.8,3133.0,0.3087]
[1763398529875,0.405504,3135.7,3133.0,0.3087]
[1763398530170,0.405504,3135.7,3132.5,0.3087]
[1763398530171,0.0239332,3135.6,3132.5,0.3087]
[1763398530372,0.0239332,3135.6,3132.1,0.3087]
[1763398530373,0.405504,3135.5,3132.1,0.3087]
[1763398530543,0.405504,3135.5,3132.4,0.90699264]
[1763398530891,0.4967,3135.4,3132.5,0.3087]
[1763398531093,0.4967,3137.3,3135.8,0.1901]
[1763398531379,0.4967,3137.1,3135.3,0.1901]
[1763398531587,0.4967,3137.1,3133.6,0.3189]
[1763398531588,0.4967,3137.1,3134.7,0.3087]
[1763398531769,0.0239332,3137.0,3134.8,0.1901]
[1763398531958,0.4967,3137.1,3134.8,0.22199996]
[1763398532153,0.4967,3137.0,3134.9,0.3087]
[1763398532357,0.5206332,3137.0,3134.8,0.1901]
[1763398532770,0.4967,3137.0,3134.8,0.1901]
[1763398532971,0.4967,3137.0,3134.9,0.3087]
[1763398533472,0.0239332,3136.9,3134.9,0.3087]
[1763398533671,0.5206332,3137.0,3134.9,0.3087]
[1763398533872,0.4967,3136.9,3134.8,0.1901]
[1763398534178,0.0239332,3136.8,3134.8,0.1901]
[1763398534384,0.0239332,3136.8,3134.9,0.001]
[1763398534579,0.4967,3136.7,3135.0,0.3087]
[1763398534782,0.4967,3136.7,3134.9,0.001]
[1763398534783,0.0239332,3136.6,3134.9,0.001]
[1763398534963,0.405504,3136.6,3134.9,0.001]
[1763398535147,0.405504,3136.4,3134.9,0.001]
[1763398535543,0.002,3137.0,3134.9,0.001]
[1763398535544,0.4599,3136.3,3134.9,0.001]
[1763398536989,0.1917,3135.0,3134.9,0.001]
[1763398537452,0.1917,3135.3,3134.9,0.001]
[1763398537894,0.4599,3135.2,3134.9,0.001]
[1763398539193,0.4838332,3135.2,3134.9,0.001]
[1763398539494,8.28204501,3135.1,3134.9,0.001]
[1763398539693,0.90052102,3135.0,3134.9,0.001]
[1763398539890,1.33648782,3135.0,3134.9,0.001]
[1763398540191,0.1917,3135.3,3134.9,0.001]
[1763398540570,0.4599,3135.2,3134.9,0.001]
[1763398541990,8.47374501,3136.1,3134.9,0.001]
[1763398541991,0.1917,3135.5,3134.9,0.001]
[1763398542558,0.4599,3135.4,3134.9,0.001]
[1763398542864,0.0239332,3135.3,3134.9,0.001]
[1763398543108,0.4599,3135.2,3134.9,0.001]
[1763398543415,0.0239332,3135.1,3134.9,0.001]
[1763398543858,0.4599,3135.0,3134.9,0.001]
[1763398544487,0.6516,3135.5,3134.9,0.001]
[1763398544692,0.4599,3135.4,3134.9,0.001]
[1763398544862,0.0239332,3135.3,3134.9,0.001]
[1763398545057,0.4599,3135.4,3134.9,0.001]
[1763398545470,0.4838332,3135.4,3134.9,0.001]
[1763398545789,0.4599,3135.4,3134.9,0.001]
[1763398546894,0.1917,3136.1,3134.9,0.001]
[1763398546895,0.1917,3135.7,3134.9,0.001]
[1763398547096,0.1917,3136.1,3134.9,0.001]
[1763398547672,0.002,3137.0,3134.9,0.3105]
[1763398547873,0.002,3137.0,3135.0,0.84940559]
[1763398548097,0.002,3137.0,3135.2,0.81750767]
[1763398548293,0.0239332,3136.9,3135.2,0.19239381]
[1763398548496,0.0239332,3136.9,3134.9,0.81850767]
[1763398548695,1.31249664,3136.8,3134.9,0.001]
[1763398549017,1.77239664,3136.8,3134.9,0.001]
[1763398549213,0.405504,3136.6,3134.9,0.001]
[1763398549406,0.405504,3136.4,3134.9,0.001]
[1763398549793,0.4599,3136.3,3134.9,0.001]
[1763398551013,0.29799019,3136.2,3134.9,0.001]
[1763398551217,0.29799019,3136.1,3134.9,0.001]
[1763398551419,0.29799019,3136.0,3134.9,0.001]
[1763398551620,0.29799019,3135.9,3134.9,0.3105]
[1763398551787,0.4599,3136.3,3134.9,0.3105]
[1763398551788,0.29799019,3135.8,3134.9,0.3105]
[1763398552120,0.4599,3136.3,3134.9,0.3105]